{"text_format":"3","workbook":"xlsx","n_sheets":4,"sheets":["附件一","附件二","附件三","附件四"],"not_rendered":{"defined_names":4},"read":"whole","date_system":"1900"}

{"sheet":"附件一","index":0,"n_rows":22,"n_cols":13,"rows_kept":22,"merged":[[0,0,0,12],[1,0,1,12]]}
["附件1"]
["南充市顺庆区2022年上半年公开招聘中小学校教师岗位和条件要求一览表"]
["县（市、区）","招聘单位","招聘岗位类别","招聘岗位名称","岗位编码","招聘人数","招聘对象及范围","年龄","学历（学位）","专业条件","其他条件","笔试科目","面试方式"]
["顺庆区","南充市顺庆区教育科技和体育局","专技岗位","初中物理教师",540101,1,"1.面向全国\n2.见公告\r","1991年5月5日及以后出生","大学本科及以上学历且取得相应学位","本科：物理学、应用物理学、核物理、地球物理学\n研究生：学科教学（物理）、课程与教学论（物理方向）、物理学、理论物理、原子与分子物理、凝聚态物理","\n1.具有初中及以上物理教师资格证；\n2.普通话二级乙等及以上。","《教育公共基础》","讲课"]
["顺庆区","南充市顺庆区教育科技和体育局","专技岗位","初中体育教师",540102,1,"1.面向全国\n2.见公告\r","1991年5月5日及以后出生","大学本科及以上学历且取得相应学位","本科：体育教育、运动训练、社会体育指导与管理、武术与民族传统体育、运动人体科学\n研究生：体育学、体育人文社会学、运动人体科学、体育教育训练学、民族传统体育学、学科教学（体育）","\n1.具有初中及以上体育教师资格证；\n2.普通话二级乙等及以上。","《教育公共基础》","讲课+技能"]
["顺庆区","南充市顺庆区教育科技和体育局","专技岗位","小学语文教师（一）",540103,20,"1.面向全国\n2.见公告\r","1991年5月5日及以后出生","大学本科及以上学历且取得相应学位","本科：汉语言文学、汉语言、小学教育、汉语国际教育\n研究生：学科教学（语文）、课程与教学论（语文方向）、中国语言文学、语言学及应用语言学、汉语言文字学、中国古典文献学、中国古代文学、中国现当代文学、小学教育","\n1.具有小学及以上语文教师资格证；\n2.普通话二级甲等及以上。","《教育公共基础》","讲课"]
["顺庆区","南充市顺庆区教育科技和体育局","专技岗位","小学语文教师（二）",540104,12,"1.面向全国\n2.见公告\r","1991年5月5日及以后出生","大学本科及以上学历且取得相应学位","本科：汉语言文学、汉语言、小学教育、汉语国际教育\n研究生：学科教学（语文）、课程与教学论（语文方向）、中国语言文学、语言学及应用语言学、汉语言文字学、中国古典文献学、中国古代文学、中国现当代文学、小学教育","\n1.具有小学及以上语文教师资格证；\n2.普通话二级甲等及以上。","《教育公共基础》","讲课"]
["顺庆区","南充市顺庆区教育科技和体育局","专技岗位","小学数学教师（一）",540105,16,"1.面向全国\n2.见公告\r","1991年5月5日及以后出生","大学本科及以上学历且取得相应学位","本科：数学与应用数学、数理基础科学、信息与计算科学、小学教育\n研究生：学科教学（数学）、课程与教学论（数学方向）、基础数学、计算数学、应用数学、数学、小学教育","\n1.具有小学及以上数学教师资格证、\n2.普通话二级甲等及以上。","《教育公共基础》","讲课"]
["顺庆区","南充市顺庆区教育科技和体育局","专技岗位","小学数学教师（二）",540106,10,"1.面向全国\n2.见公告\r","1991年5月5日及以后出生","大学本科及以上学历且取得相应学位","本科：数学与应用数学、数理基础科学、信息与计算科学、小学教育\n研究生：学科教学（数学）、课程与教学论（数学方向）、基础数学、计算数学、应用数学、数学、小学教育","\n1.具有小学及以上数学教师资格证、\n2.普通话二级甲等及以上。","《教育公共基础》","讲课"]
["顺庆区","南充市顺庆区教育科技和体育局","专技岗位","小学英语教师",540107,3,"1.面向全国\n2.见公告\r","1991年5月5日及以后出生","大学本科及以上学历且取得相应学位","本科：英语、商务英语\n研究生：英语语言文学、学科教学（英语）、英语笔译、英语口译、课程与教学论（英语方向）","\n1.具有小学及以上英语教师资格证、英语等级达到公共六级或专业四级及以上；\n2.普通话二级甲等及以上。","《教育公共基础》","讲课"]
["顺庆区","南充市顺庆区教育科技和体育局","专技岗位","小学音乐教师",540108,6,"1.面向全国\n2.见公告\r","1991年5月5日及以后出生","大学本科及以上学历且取得相应学位","本科：音乐学、音乐表演、舞蹈表演、舞蹈学\n研究生：音乐学、音乐与舞蹈学、学科教学（音乐）、音乐、舞蹈、小学教育","\n1.具有小学及以上音乐教师资格证；\n2.普通话二级甲等及以上。","《教育公共基础》","讲课+技能"]
["顺庆区","南充市顺庆区教育科技和体育局","专技岗位","小学体育教师",540109,7,"1.面向全国\n2.见公告\r","1991年5月5日及以后出生","大学本科及以上学历且取得相应学位","本科：体育教育、运动训练、社会体育指导与管理、武术与民族传统体育、运动人体科学\n研究生：体育学、体育人文社会学、运动人体科学、体育教育训练学、民族传统体育学、学科教学（体育）、小学教育","\n1.具有小学及以上体育教师资格证；\n2.普通话二级甲等及以上。","《教育公共基础》","讲课+技能"]
["顺庆区","南充市顺庆区教育科技和体育局","专技岗位","小学美术教师",540110,6,"1.面向全国\n2.见公告\r","1991年5月5日及以后出生","大学本科及以上学历且取得相应学位","本科：美术学、绘画、书法学、中国画、视觉传达设计\n研究生：美术学、学科教学（美术）、美术、艺术、艺术设计、小学教育","\n1.具有小学及以上美术教师资格证；\n2.普通话二级甲等及以上。","《教育公共基础》","讲课+技能"]
["顺庆区","南充市顺庆区教育科技和体育局","专技岗位","心理健康教师",540111,21,"1.面向全国\n2.见公告\r","1991年5月5日及以后出生","大学本科及以上学历且取得相应学位","本科：应用心理学、心理学\n研究生：心理学、基础心理学、发展与教育心理学、应用心理学、心理健康教育、应用心理","1.具有初中及以上心理教师资格证；\n2.普通话二级甲等及以上。","《教育公共基础》","讲课"]
["顺庆区","南充市顺庆区教育科技和体育局","专技岗位","中小学语文教师（三）",540112,8,"1.面向全国\n2.见公告\r","1991年5月5日及以后出生","大学本科及以上学历且取得相应学位","本科：汉语言文学、汉语言、小学教育、汉语国际教育\n研究生：学科教学（语文）、课程与教学论（语文方向）、中国语言文学、语言学及应用语言学、汉语言文字学、中国古典文献学、中国古代文学、中国现当代文学、小学教育","\n1.具有初中及以上语文教师资格证；\n2.普通话二级甲等及以上。","《教育公共基础》","讲课"]
["顺庆区","南充市顺庆区教育科技和体育局","专技岗位","中小学数学教师（三）",540113,7,"1.面向全国\n2.见公告\r","1991年5月5日及以后出生","大学本科及以上学历且取得相应学位","本科：数学与应用数学、数理基础科学、信息与计算科学、小学教育\n研究生：学科教学（数学）、课程与教学论（数学方向）、基础数学、计算数学、应用数学、数学、小学教育","\n1.具有初中及以上数学教师资格证；\n2.普通话二级甲等及以上。","《教育公共基础》","讲课"]
["顺庆区","南充市顺庆区教育科技和体育局","专技岗位","西河路小学幼儿教师",540114,10,"1.面向全国\n2.见公告\r","1991年5月5日及以后出生","大学本科及以上学历且取得相应学位","本科：学前教育\n研究生：学前教育学、学前教育","1.具有幼儿园教师资格证；\n2.普通话二级甲等及以上；\n","《教育公共基础》","讲课+技能"]
["顺庆区","南充市顺庆区教育科技和体育局","专技岗位","特殊教育教师",540115,9,"1.面向全国\n2.见公告\r","1991年5月5日及以后出生","大学本科及以上学历且取得相应学位","本科：特殊教育、教育康复学\n研究生：特殊教育、特殊教育学","1.具有小学及以上教师资格证；\n2.普通话二级乙等及以上。","《教育公共基础》","讲课"]
["顺庆区","南充市顺庆区教育科技和体育局","专技岗位","数控教师",540116,4,"1.面向全国\n2.见公告\r","1991年5月5日及以后出生","大学本科及以上学历且取得相应学位","本科：数控技术、机械设计制造及其自动化、机械设计制造及自动化\n研究生：机械设计及理论、机械制造及其自动化、机械电子工程、机械工程、机械","具有中等职业学校相应学科教师资格证","《教育公共基础》","讲课"]
["顺庆区","南充市顺庆区教育科技和体育局","专技岗位","物流管理教师",540117,4,"1.面向全国\n2.见公告\r","1991年5月5日及以后出生","大学本科及以上学历且取得相应学位","本科：物流管理、物流工程、现代物流管理\n研究生：军事物流学、物流工程与管理","具有中等职业学校相应学科教师资格证","《教育公共基础》","讲课"]
["顺庆区","南充市顺庆区教育科技和体育局","专技岗位","酒店管理教师",540118,2,"1.面向全国\n2.见公告\r","1991年5月5日及以后出生","大学本科及以上学历且取得相应学位","本科：酒店管理、旅游管理、旅游管理与服务教育\n研究生：旅游管理、工商管理","具有中等职业学校相应学科教师资格证","《教育公共基础》","讲课"]
["顺庆区","南充市顺庆区教育科技和体育局","专技岗位","烹饪教师",540119,2,"1.面向全国\n2.见公告\r","1991年5月5日及以后出生","大学本科及以上学历且取得相应学位","本科：烹饪与营养教育、烹饪与餐饮管理\n","具有中等职业学校相应学科教师资格证","《教育公共基础》","讲课"]

{"sheet":"附件二","index":1,"n_rows":23,"n_cols":7,"rows_kept":23,"merged":[[1,0,1,6],[2,0,3,0],[2,1,3,1],[2,2,3,2],[2,3,2,5],[2,6,3,6]]}
["附件2"]
["南充市顺庆区2022年上半年公开招聘面试方式及主要范围一览表"]
["招聘单位","招聘岗位","面试方式","面试主要范围",null,null,"备注"]
[{"$nulls":3},"结构化面试","专业技能(操作)","其他"]
["南充市顺庆区教育科技和体育局","初中物理教师","讲课",{"$nulls":3}," "]
["南充市顺庆区教育科技和体育局","初中体育教师","讲课+技能",{"$nulls":3}," "]
["南充市顺庆区教育科技和体育局","小学语文教师（一）","讲课",{"$nulls":3}," "]
["南充市顺庆区教育科技和体育局","小学语文教师（二）","讲课"]
["南充市顺庆区教育科技和体育局","小学数学教师（一）","讲课"]
["南充市顺庆区教育科技和体育局","小学数学教师（二）","讲课"]
["南充市顺庆区教育科技和体育局","小学英语教师","讲课"]
["南充市顺庆区教育科技和体育局","小学音乐教师","讲课+技能"]
["南充市顺庆区教育科技和体育局","小学体育教师","讲课+技能"]
["南充市顺庆区教育科技和体育局","小学美术教师","讲课+技能"]
["南充市顺庆区教育科技和体育局","心理健康教师","讲课"]
["南充市顺庆区教育科技和体育局","中小学语文教师（三）","讲课"]
["南充市顺庆区教育科技和体育局","中小学数学教师（三）","讲课"]
["南充市顺庆区教育科技和体育局","西河路小学幼儿教师","讲课+技能"]
["南充市顺庆区教育科技和体育局","特殊教育教师","讲课"]
["南充市顺庆区教育科技和体育局","数控教师","讲课"]
["南充市顺庆区教育科技和体育局","物流管理教师","讲课"]
["南充市顺庆区教育科技和体育局","酒店管理教师","讲课"]
["南充市顺庆区教育科技和体育局","烹饪教师","讲课"]

{"sheet":"附件三","index":2,"n_rows":4,"n_cols":5,"rows_kept":4,"merged":[[1,0,1,4]]}
["附件3"]
["南充市顺庆区2022年上半年公开招聘事业单位基本情况一览表"]
["招聘单位（主管部门）","单位\n性质","单位地址","联系电话","主要职能"]
["南充市顺庆区教育科技和体育局","下辖学校为全额拨款事业单位","四川省南充市顺庆区育英路21号","0817—2235950","负责全区教育、科技、体育工作"]

{"sheet":"附件四","index":3,"n_rows":33,"n_cols":22,"rows_kept":33,"merged":[[1,0,1,21],[2,0,3,0],[2,1,3,1],[2,2,3,2],[2,3,3,3],[2,4,3,4],[2,5,3,5],[2,6,3,6],[2,7,3,7],[2,8,3,8],[2,9,3,9],[2,10,3,10],[2,11,3,11],[2,12,3,12],[2,13,3,13],[2,14,3,14],[2,15,3,15],[2,16,3,16],[2,17,3,17],[2,18,3,18],[2,19,3,19],[2,20,3,20],[2,21,3,21],[4,0,9,0],[10,0,28,0]]}
[null,"附件4"]
["南充市顺庆区2022年上半年公开招聘中小学教师学校及岗位（人数）一览表"]
["类别","学校","层次","语文（一）","语文（二）","语文（三）","数学（一）","数学（二）","数学（三）","英语","物理","音乐","体育","美术","心理\n健康","学前教育","特殊教育","数控技术","物流管理","酒店管理","烹饪教育","小计"]
[]
["初中","南充二中","初中",{"$nulls":11},1,{"$nulls":6},{"$f":"SUM(D5:U5)","v":1}]
[null,"建华中学","初中",{"$nulls":11},1,{"$nulls":6},1]
[null,"南充五中","初中",{"$nulls":11},1,{"$nulls":6},1]
[null,"南充市青龙山学校","初中",{"$nulls":7},1,null,1,null,1,{"$nulls":6},3]
[null,"南充七中","初中",{"$nulls":11},1,{"$nulls":6},1]
[null,"南充九中","初中",{"$nulls":11},1,{"$nulls":6},1]
["小学","南充市青龙山学校","小学",5,null,null,4,null,null,2,null,1,1,1,{"$nulls":7},14]
[null,"西华师大附小","小学",3,null,null,2,null,null,1,{"$nulls":4},1,{"$nulls":6},7]
[null,"南充市清泉小学","小学",8,null,null,6,{"$nulls":4},1,1,1,1,{"$nulls":6},18]
[null,"五星小学(育新)","小学",{"$nulls":3},1,{"$nulls":5},2,1,{"$nulls":7},4]
[null,"南充市凤鸣小学","小学",null,6,null,null,5,{"$nulls":3},2,1,2,{"$nulls":7},16]
[null,"涪江路小学","小学",3,null,null,1,{"$nulls":7},1,{"$nulls":6},5]
[null,"五星小学(育英)","小学",1,null,null,2,{"$nulls":4},1,1,null,1,{"$nulls":6},6]
[null,"五星中学","小学",null,6,null,null,5,{"$nulls":3},1,1,1,{"$nulls":7},14]
[null,"顺庆实验小学","小学",{"$nulls":11},1,{"$nulls":6},1]
[null,"五星小学南门坝分校","小学",{"$nulls":11},1,{"$nulls":6},1]
[null,"大北街小学","小学",{"$nulls":11},1,{"$nulls":6},1]
[null,"城北小学","小学",{"$nulls":11},1,{"$nulls":6},1]
[null,"府荆小学","小学",{"$nulls":11},1,{"$nulls":6},1]
[null,"西山外国语实验学校","小学",{"$nulls":11},1,{"$nulls":6},1]
[null,"延安路小学","小学",{"$nulls":11},1,{"$nulls":6},1]
[null,"石油南路小学","小学",{"$nulls":11},1,{"$nulls":6},1]
[null,"川矿学校","小学",{"$nulls":11},1,{"$nulls":6},1]
[null,"潆溪小学","小学",{"$nulls":11},1,{"$nulls":6},1]
[null,"西河路小学",{"$nulls":12},1,10,{"$nulls":5},11]
["特教","顺庆区特殊教育学校","特教",{"$nulls":13},9,{"$nulls":4},9]
["中职","南充市潆溪高级职业中学","中职",{"$nulls":14},4,4,2,2,12]
["中小学","公办中小学学校(含农村学校)","中小学",null,null,8,null,null,7,{"$nulls":12},15]
[null,"合计",null,{"$f":"SUM(D5:D32)","v":20},12,8,16,10,7,3,1,6,8,6,21,10,9,4,4,2,2,149]